[Event "Early-Titled-Tuesday-Blitz-March-19-2024"]
[Site "Chess.com"]
[Date "2024.03.19"]
[Round "5"]
[White "angelgab3"]
[Black "ragnaroek66"]
[Result "0-1"]
[WhiteElo "2664"]
[BlackElo "2533"]
[TimeControl "180+1"]
[EndTime "8:56:09 PDT"]
[Termination "ragnaroek66 won by resignation"]

1. e4 {[%clk 0:03:00.9]} 1... c5 {[%clk 0:02:59.4]} 2. Nf3 {[%clk 0:03:01]} 2...
Nc6 {[%clk 0:03:00]} 3. Bb5 {[%clk 0:03:00.5]} 3... e6 {[%clk 0:03:00.1]} 4. O-O
{[%clk 0:03:00.1]} 4... Nge7 {[%clk 0:03:00]} 5. d4 {[%clk 0:03:00.8]} 5... cxd4
{[%clk 0:02:59.8]} 6. Nxd4 {[%clk 0:03:01.7]} 6... Ng6 {[%clk 0:02:59.7]} 7. Be3
{[%clk 0:03:02.1]} 7... Be7 {[%clk 0:02:58.7]} 8. c3 {[%clk 0:03:02.1]} 8... O-O
{[%clk 0:02:58.5]} 9. Nd2 {[%clk 0:03:02.8]} 9... Qc7 {[%clk 0:02:58.2]} 10. Rc1
{[%clk 0:02:56.4]} 10... b6 {[%clk 0:02:38.1]} 11. Qh5 {[%clk 0:02:17.6]} 11...
Bb7 {[%clk 0:02:36]} 12. f4 {[%clk 0:02:17]} 12... Kh8 {[%clk 0:02:18.4]} 13. f5
{[%clk 0:02:02.9]} 13... Nge5 {[%clk 0:02:16.9]} 14. N2f3 {[%clk 0:01:48.2]}
14... exf5 {[%clk 0:01:54.6]} 15. Nxf5 {[%clk 0:01:38.7]} 15... Bf6 {[%clk
0:01:44.7]} 16. Ng5 {[%clk 0:01:24.2]} 16... Bxg5 {[%clk 0:01:32.3]} 17. Bxg5
{[%clk 0:01:25.1]} 17... f6 {[%clk 0:01:28.4]} 18. Nxg7 {[%clk 0:00:11.5]} 18...
fxg5 {[%clk 0:01:14]} 19. Nf5 {[%clk 0:00:11]} 19... Ne7 {[%clk 0:00:55.2]} 20.
Nxe7 {[%clk 0:00:09.1]} 20... Qc5+ {[%clk 0:00:55]} 21. Kh1 {[%clk 0:00:10]}
21... Qxe7 {[%clk 0:00:54.5]} 22. Rfd1 {[%clk 0:00:09.2]} 22... Bxe4 {[%clk
0:00:48.5]} 23. Re1 {[%clk 0:00:09.5]} 23... d5 {[%clk 0:00:48.4]} 0-1

[Event "Early-Titled-Tuesday-Blitz-March-19-2024"]
[Site "Chess.com"]
[Date "2024.03.19"]
[Round "5"]
[White "Chessdude1987"]
[Black "akanga001"]
[Result "0-1"]
[WhiteElo "2370"]
[BlackElo "2039"]
[TimeControl "180+1"]
[EndTime "8:56:10 PDT"]
[Termination "akanga001 won by resignation"]

1. e4 {[%clk 0:03:00.9]} 1... e6 {[%clk 0:02:59.5]} 2. d4 {[%clk 0:02:57.1]}
2... d5 {[%clk 0:02:59.9]} 3. e5 {[%clk 0:02:56.6]} 3... c5 {[%clk 0:02:58.3]}
4. c3 {[%clk 0:02:56.9]} 4... Nc6 {[%clk 0:02:58.3]} 5. Nf3 {[%clk 0:02:56.7]}
5... Nge7 {[%clk 0:02:58.4]} 6. Bd3 {[%clk 0:02:54.1]} 6... cxd4 {[%clk
0:02:54.8]} 7. O-O {[%clk 0:02:52.6]} 7... Bd7 {[%clk 0:02:47.2]} 8. Re1 {[%clk
0:02:51.8]} 8... Qb6 {[%clk 0:02:44.7]} 9. Ng5 {[%clk 0:02:48.8]} 9... Ng6
{[%clk 0:02:28.3]} 10. Bxg6 {[%clk 0:02:21.6]} 10... hxg6 {[%clk 0:02:26.2]} 11.
Qf3 {[%clk 0:02:18.2]} 11... Nd8 {[%clk 0:02:25.8]} 12. Nd2 {[%clk 0:02:15.9]}
12... dxc3 {[%clk 0:02:19.5]} 13. bxc3 {[%clk 0:02:15.5]} 13... Be7 {[%clk
0:02:19.9]} 14. Nb3 {[%clk 0:02:00.7]} 14... O-O {[%clk 0:02:11.7]} 15. Be3
{[%clk 0:01:53.4]} 15... Qc7 {[%clk 0:02:07.9]} 16. Qh3 {[%clk 0:01:08.1]} 16...
Bxg5 {[%clk 0:02:06.4]} 17. Bxg5 {[%clk 0:01:09]} 17... Nc6 {[%clk 0:02:05.6]}
18. Nd4 {[%clk 0:00:35.7]} 18... Nxe5 {[%clk 0:01:59.9]} 19. Bf4 {[%clk
0:00:28.7]} 19... f6 {[%clk 0:01:59.4]} 20. Bxe5 {[%clk 0:00:24.1]} 20... fxe5
{[%clk 0:01:57]} 21. Nf3 {[%clk 0:00:24.3]} 21... Rf5 {[%clk 0:01:51.3]} 22.
Rac1 {[%clk 0:00:16]} 22... Raf8 {[%clk 0:01:40.2]} 23. Qg3 {[%clk 0:00:15.8]}
23... Qb6 {[%clk 0:01:30.7]} 24. Kh1 {[%clk 0:00:13.1]} 24... e4 {[%clk
0:01:25.5]} 25. Ne5 {[%clk 0:00:09.8]} 25... Be8 {[%clk 0:01:25.6]} 26. f4
{[%clk 0:00:06.3]} 26... exf3 {[%clk 0:01:24.2]} 27. gxf3 {[%clk 0:00:04]} 27...
g5 {[%clk 0:01:20.9]} 28. Rc2 {[%clk 0:00:03.9]} 28... Bh5 {[%clk 0:01:19.4]}
29. Rf2 {[%clk 0:00:03.2]} 29... g4 {[%clk 0:01:16.2]} 30. Nxg4 {[%clk
0:00:03.3]} 30... Bxg4 {[%clk 0:01:16]} 31. Qxg4 {[%clk 0:00:03.5]} 31... Qxf2
{[%clk 0:01:12.9]} 32. Rg1 {[%clk 0:00:03.2]} 32... Qxf3+ {[%clk 0:01:12.6]} 33.
Qxf3 {[%clk 0:00:03.2]} 33... Rxf3 {[%clk 0:01:12.8]} 0-1

[Event "Early-Titled-Tuesday-Blitz-March-19-2024"]
[Site "Chess.com"]
[Date "2024.03.19"]
[Round "5"]
[White "Chernov_Alexander_A"]
[Black "shirovin"]
[Result "1-0"]
[WhiteElo "2307"]
[BlackElo "2040"]
[TimeControl "180+1"]
[EndTime "8:56:11 PDT"]
[Termination "Chernov_Alexander_A won on time"]

1. d4 {[%clk 0:03:00.9]} 1... Nf6 {[%clk 0:02:58.4]} 2. Nc3 {[%clk 0:03:00.8]}
2... d5 {[%clk 0:02:57.1]} 3. Bg5 {[%clk 0:03:00.3]} 3... c5 {[%clk 0:02:46.9]}
4. e3 {[%clk 0:02:59.9]} 4... Nc6 {[%clk 0:02:46.2]} 5. Nf3 {[%clk 0:02:59.8]}
5... Bf5 {[%clk 0:02:40.1]} 6. Bd3 {[%clk 0:02:58.3]} 6... Bxd3 {[%clk
0:02:33.1]} 7. Qxd3 {[%clk 0:02:57.9]} 7... e6 {[%clk 0:02:32]} 8. O-O {[%clk
0:02:56.3]} 8... Be7 {[%clk 0:02:30]} 9. Ne5 {[%clk 0:02:53]} 9... cxd4 {[%clk
0:02:13.2]} 10. exd4 {[%clk 0:02:52.4]} 10... Nxe5 {[%clk 0:02:12.6]} 11. dxe5
{[%clk 0:02:51.7]} 11... Nd7 {[%clk 0:02:12.7]} 12. Bf4 {[%clk 0:02:35.5]} 12...
O-O {[%clk 0:02:10.4]} 13. Bg3 {[%clk 0:02:17.3]} 13... Rc8 {[%clk 0:02:08.3]}
14. Ne2 {[%clk 0:02:14.1]} 14... Qc7 {[%clk 0:02:06.8]} 15. c3 {[%clk
0:02:13.3]} 15... Nc5 {[%clk 0:01:54.5]} 16. Qe3 {[%clk 0:02:06.4]} 16... Ne4
{[%clk 0:01:54]} 17. Nd4 {[%clk 0:02:02.7]} 17... Nxg3 {[%clk 0:01:41.4]} 18.
hxg3 {[%clk 0:02:01.4]} 18... Qb6 {[%clk 0:01:37.4]} 19. Rab1 {[%clk 0:01:44.5]}
19... Bc5 {[%clk 0:01:31.6]} 20. Rfd1 {[%clk 0:01:42.8]} 20... Rc7 {[%clk
0:01:10.2]} 21. Kh2 {[%clk 0:01:38.2]} 21... Rfc8 {[%clk 0:01:01.7]} 22. Rd2
{[%clk 0:01:35.6]} 22... h6 {[%clk 0:00:57.2]} 23. Re1 {[%clk 0:01:22.2]} 23...
Bxd4 {[%clk 0:00:54.1]} 24. cxd4 {[%clk 0:01:21]} 24... Rc2 {[%clk 0:00:47.3]}
25. Ree2 {[%clk 0:01:20.7]} 25... Rxd2 {[%clk 0:00:38.9]} 26. Rxd2 {[%clk
0:01:20.3]} 26... Qa5 {[%clk 0:00:30.1]} 27. a3 {[%clk 0:01:17.9]} 27... Qa4
{[%clk 0:00:27.4]} 28. Qd3 {[%clk 0:01:07.5]} 28... Rc4 {[%clk 0:00:26.2]} 29.
b3 {[%clk 0:01:04.5]} 1-0

[Event "Early-Titled-Tuesday-Blitz-March-19-2024"]
[Site "Chess.com"]
[Date "2024.03.19"]
[Round "5"]
[White "Horokoskii"]
[Black "FREZZY23"]
[Result "0-1"]
[WhiteElo "2150"]
[BlackElo "2415"]
[TimeControl "180+1"]
[EndTime "8:56:12 PDT"]
[Termination "FREZZY23 won by resignation"]

1. c4 {[%clk 0:02:54.9]} 1... Nf6 {[%clk 0:02:58.5]} 2. Nc3 {[%clk 0:02:52]}
2... g6 {[%clk 0:02:54.2]} 3. e4 {[%clk 0:02:51.4]} 3... e5 {[%clk 0:02:53.1]}
4. Nf3 {[%clk 0:02:50]} 4... Bg7 {[%clk 0:02:53.4]} 5. d3 {[%clk 0:02:49.3]}
5... O-O {[%clk 0:02:53.8]} 6. Be3 {[%clk 0:02:48.6]} 6... Nc6 {[%clk
0:02:49.1]} 7. h3 {[%clk 0:02:48.6]} 7... d6 {[%clk 0:02:47.2]} 8. Be2 {[%clk
0:02:48.7]} 8... h6 {[%clk 0:02:47.3]} 9. Qd2 {[%clk 0:02:48.3]} 9... Kh7 {[%clk
0:02:46.9]} 10. O-O {[%clk 0:02:43.5]} 10... Re8 {[%clk 0:02:44.9]} 11. Nd5
{[%clk 0:02:43.5]} 11... Be6 {[%clk 0:02:43.4]} 12. Nxf6+ {[%clk 0:02:36.3]}
12... Qxf6 {[%clk 0:02:42.5]} 13. d4 {[%clk 0:02:36.7]} 13... exd4 {[%clk
0:02:41.9]} 14. Bf4 {[%clk 0:02:31.5]} 14... Ne5 {[%clk 0:02:35.8]} 15. Nxd4
{[%clk 0:02:23.6]} 15... Nxc4 {[%clk 0:02:33.7]} 16. Bxc4 {[%clk 0:02:19.4]}
16... Bxc4 {[%clk 0:02:33.8]} 17. Rfd1 {[%clk 0:02:17.6]} 17... Rxe4 {[%clk
0:02:33.3]} 18. Be3 {[%clk 0:02:15.3]} 18... Rae8 {[%clk 0:02:31.5]} 19. Rac1
{[%clk 0:02:11.7]} 19... d5 {[%clk 0:02:25.9]} 20. b3 {[%clk 0:02:10.1]} 20...
c5 {[%clk 0:02:25.8]} 21. Nf3 {[%clk 0:02:00.3]} 21... d4 {[%clk 0:01:40.6]} 22.
Bxd4 {[%clk 0:01:56.6]} 22... cxd4 {[%clk 0:01:25.8]} 23. Rxc4 {[%clk
0:01:55.8]} 23... Re2 {[%clk 0:01:23.4]} 24. Qxd4 {[%clk 0:01:54.5]} 24... Qxf3
{[%clk 0:01:23.2]} 25. Qxg7+ {[%clk 0:01:53.6]} 25... Kxg7 {[%clk 0:01:22]} 26.
gxf3 {[%clk 0:01:53.7]} 26... R8e7 {[%clk 0:01:15.1]} 27. a4 {[%clk 0:01:51.9]}
27... Rb2 {[%clk 0:01:13.1]} 28. Rd3 {[%clk 0:01:51.9]} 28... h5 {[%clk
0:01:11.1]} 29. Re4 {[%clk 0:01:50.9]} 29... Rxe4 {[%clk 0:01:06.7]} 30. fxe4
{[%clk 0:01:51.8]} 30... Kf6 {[%clk 0:01:07.2]} 31. Kg2 {[%clk 0:01:51.5]} 31...
Ke5 {[%clk 0:01:06.6]} 32. Kf3 {[%clk 0:01:51.5]} 32... g5 {[%clk 0:01:06.1]}
33. Rc3 {[%clk 0:01:46.7]} 33... Kd4 {[%clk 0:01:04.4]} 34. Re3 {[%clk
0:01:45.3]} 34... f6 {[%clk 0:01:03.4]} 35. h4 {[%clk 0:01:44]} 35... gxh4
{[%clk 0:01:02.2]} 36. Kg2 {[%clk 0:01:41.7]} 36... Ke5 {[%clk 0:00:49]} 37. Kf3
{[%clk 0:01:32.5]} 37... h3 {[%clk 0:00:47.2]} 38. Kg3 {[%clk 0:01:26.3]} 38...
h2 {[%clk 0:00:44.7]} 39. Kxh2 {[%clk 0:01:25.6]} 39... Rxf2+ {[%clk 0:00:43.9]}
40. Kg1 {[%clk 0:01:23.1]} 40... Rf4 {[%clk 0:00:42.4]} 41. Rh3 {[%clk
0:01:18.4]} 41... h4 {[%clk 0:00:41.7]} 42. Rc3 {[%clk 0:01:17.3]} 42... Rxe4
{[%clk 0:00:41.2]} 43. Rc7 {[%clk 0:01:16.8]} 43... Rb4 {[%clk 0:00:40.4]} 44.
Rc5+ {[%clk 0:01:16.9]} 44... Kf4 {[%clk 0:00:39.7]} 45. Rh5 {[%clk 0:01:16.6]}
45... Kg3 {[%clk 0:00:38.4]} 46. Rf5 {[%clk 0:01:16.1]} 46... Rxb3 {[%clk
0:00:38]} 0-1

[Event "Early-Titled-Tuesday-Blitz-March-19-2024"]
[Site "Chess.com"]
[Date "2024.03.19"]
[Round "5"]
[White "noblerone"]
[Black "Mikhail_Bryakin"]
[Result "0-1"]
[WhiteElo "2536"]
[BlackElo "2744"]
[TimeControl "180+1"]
[EndTime "8:56:14 PDT"]
[Termination "Mikhail_Bryakin won by checkmate"]

1. d4 {[%clk 0:02:55.3]} 1... f5 {[%clk 0:02:51.5]} 2. Nf3 {[%clk 0:02:51.8]}
2... Nf6 {[%clk 0:02:49.6]} 3. Bf4 {[%clk 0:02:52.3]} 3... d6 {[%clk 0:02:47.6]}
4. e3 {[%clk 0:02:52.1]} 4... g6 {[%clk 0:02:46.1]} 5. Be2 {[%clk 0:02:51.3]}
5... Bg7 {[%clk 0:02:46.6]} 6. h3 {[%clk 0:02:51.8]} 6... O-O {[%clk 0:02:38.4]}
7. O-O {[%clk 0:02:50.4]} 7... Qe8 {[%clk 0:02:36.1]} 8. Bh2 {[%clk 0:02:49.2]}
8... Nbd7 {[%clk 0:02:27.4]} 9. c4 {[%clk 0:02:39.1]} 9... c6 {[%clk 0:02:27]}
10. Nc3 {[%clk 0:02:38.5]} 10... e5 {[%clk 0:02:26]} 11. Rb1 {[%clk 0:02:02.7]}
11... h6 {[%clk 0:02:25.2]} 12. b4 {[%clk 0:02:02.1]} 12... g5 {[%clk
0:02:25.8]} 13. dxe5 {[%clk 0:02:00.7]} 13... dxe5 {[%clk 0:02:25.8]} 14. Nd2
{[%clk 0:01:54.2]} 14... a5 {[%clk 0:02:20.4]} 15. b5 {[%clk 0:01:50.2]} 15...
Nc5 {[%clk 0:02:20.3]} 16. Nb3 {[%clk 0:01:44]} 16... Nxb3 {[%clk 0:02:18.9]}
17. axb3 {[%clk 0:01:27.9]} 17... f4 {[%clk 0:02:18.6]} 18. exf4 {[%clk
0:01:24.4]} 18... exf4 {[%clk 0:02:05.7]} 19. Re1 {[%clk 0:01:19.1]} 19... Qf7
{[%clk 0:02:00.7]} 20. Bf3 {[%clk 0:01:13.4]} 20... Bf5 {[%clk 0:01:55.2]} 21.
Rc1 {[%clk 0:01:12.9]} 21... Rad8 {[%clk 0:01:52.2]} 22. Qe2 {[%clk 0:01:01.8]}
22... Qc7 {[%clk 0:01:51.3]} 23. Qe7 {[%clk 0:00:42.6]} 23... Rf7 {[%clk
0:01:35.6]} 24. Qxc7 {[%clk 0:00:41.6]} 24... Rxc7 {[%clk 0:01:36.5]} 25. h4
{[%clk 0:00:31.4]} 25... Ng4 {[%clk 0:01:29.7]} 26. hxg5 {[%clk 0:00:26.7]}
26... Nxh2 {[%clk 0:01:29.6]} 27. Kxh2 {[%clk 0:00:24]} 27... hxg5 {[%clk
0:01:30.5]} 28. Ne4 {[%clk 0:00:17]} 28... g4 {[%clk 0:01:29.5]} 29. b6 {[%clk
0:00:07.6]} 29... Re7 {[%clk 0:01:28.2]} 30. Ng5 {[%clk 0:00:05.2]} 30... Rxe1
{[%clk 0:01:27.5]} 31. Rxe1 {[%clk 0:00:05.7]} 31... gxf3 {[%clk 0:01:27.6]} 32.
Nxf3 {[%clk 0:00:06.6]} 32... Kf7 {[%clk 0:01:27.1]} 33. Ng5+ {[%clk 0:00:05.9]}
33... Kf6 {[%clk 0:01:25.5]} 34. Nf3 {[%clk 0:00:06.2]} 34... Bf8 {[%clk
0:01:22.5]} 35. Nh4 {[%clk 0:00:03.5]} 35... Bc5 {[%clk 0:01:21.5]} 36. f3
{[%clk 0:00:02.6]} 36... Bxb6 {[%clk 0:01:22.1]} 37. Nxf5 {[%clk 0:00:02.7]}
37... Kxf5 {[%clk 0:01:23]} 38. Re4 {[%clk 0:00:02.9]} 38... Rh8# {[%clk
0:01:22.9]} 0-1

[Event "Early-Titled-Tuesday-Blitz-March-19-2024"]
[Site "Chess.com"]
[Date "2024.03.19"]
[Round "5"]
[White "Navyblue1"]
[Black "secrethawk1"]
[Result "1/2-1/2"]
[WhiteElo "2227"]
[BlackElo "2433"]
[TimeControl "180+1"]
[EndTime "8:56:14 PDT"]
[Termination "Game drawn by repetition"]

1. d4 {[%clk 0:03:00.9]} 1... Nf6 {[%clk 0:02:57.8]} 2. c4 {[%clk 0:03:01.3]}
2... e6 {[%clk 0:02:58.2]} 3. Nf3 {[%clk 0:03:00.4]} 3... b6 {[%clk 0:02:54.8]}
4. g3 {[%clk 0:02:58.2]} 4... Bb7 {[%clk 0:02:54.1]} 5. Bg2 {[%clk 0:02:58.1]}
5... Be7 {[%clk 0:02:55]} 6. O-O {[%clk 0:02:57.8]} 6... Rg8 {[%clk 0:02:54.9]}
7. Nc3 {[%clk 0:02:49.7]} 7... d6 {[%clk 0:02:54.7]} 8. Qc2 {[%clk 0:02:46.9]}
8... Nbd7 {[%clk 0:02:53.2]} 9. e4 {[%clk 0:02:45.6]} 9... c6 {[%clk 0:02:47.9]}
10. Re1 {[%clk 0:02:36.9]} 10... e5 {[%clk 0:02:43.7]} 11. dxe5 {[%clk
0:02:28.5]} 11... dxe5 {[%clk 0:02:44.6]} 12. Bg5 {[%clk 0:02:22.8]} 12... Qc7
{[%clk 0:02:41.1]} 13. Rad1 {[%clk 0:02:16.6]} 13... h6 {[%clk 0:02:32.6]} 14.
Bxf6 {[%clk 0:02:11.8]} 14... Bxf6 {[%clk 0:02:25.7]} 15. b4 {[%clk 0:01:57.3]}
15... g6 {[%clk 0:02:13.8]} 16. b5 {[%clk 0:01:23.7]} 16... c5 {[%clk
0:02:08.6]} 17. Nd5 {[%clk 0:01:01]} 17... Bxd5 {[%clk 0:02:04]} 18. Rxd5 {[%clk
0:01:00.1]} 18... Ke7 {[%clk 0:01:59.4]} 19. Red1 {[%clk 0:00:57.3]} 19... Rgd8
{[%clk 0:01:46.2]} 20. R1d3 {[%clk 0:00:26.2]} 20... Nf8 {[%clk 0:01:42.8]} 21.
Bh3 {[%clk 0:00:23]} 21... h5 {[%clk 0:01:32.2]} 22. Qd1 {[%clk 0:00:19.4]}
22... Rab8 {[%clk 0:01:12.2]} 23. Rxd8 {[%clk 0:00:16.6]} 23... Rxd8 {[%clk
0:01:12.6]} 24. Rxd8 {[%clk 0:00:16.7]} 24... Qxd8 {[%clk 0:01:13.1]} 25. Qxd8+
{[%clk 0:00:17.4]} 25... Kxd8 {[%clk 0:01:13.3]} 26. Kf1 {[%clk 0:00:18.1]}
26... Nh7 {[%clk 0:01:10.1]} 27. Ke2 {[%clk 0:00:17.6]} 27... Ng5 {[%clk
0:01:10]} 28. Nxg5 {[%clk 0:00:17.4]} 28... Bxg5 {[%clk 0:01:10]} 29. Kd3 {[%clk
0:00:18.1]} 29... Ke7 {[%clk 0:01:08.9]} 30. a4 {[%clk 0:00:18.7]} 30... Kd6
{[%clk 0:01:08.5]} 31. f3 {[%clk 0:00:18.7]} 31... Bc1 {[%clk 0:00:57.1]} 32.
Bc8 {[%clk 0:00:18.4]} 32... Bg5 {[%clk 0:00:56.1]} 33. Bh3 {[%clk 0:00:18.4]}
33... Bc1 {[%clk 0:00:55.6]} 34. Bc8 {[%clk 0:00:18.9]} 34... Bg5 {[%clk
0:00:55.7]} 35. Bh3 {[%clk 0:00:19.6]} 1/2-1/2

[Event "Early-Titled-Tuesday-Blitz-March-19-2024"]
[Site "Chess.com"]
[Date "2024.03.19"]
[Round "5"]
[White "microbear"]
[Black "Grossboss19"]
[Result "1-0"]
[WhiteElo "2357"]
[BlackElo "2564"]
[TimeControl "180+1"]
[EndTime "8:56:15 PDT"]
[Termination "microbear won by resignation"]

1. e4 {[%clk 0:03:00.7]} 1... c5 {[%clk 0:02:47.1]} 2. Nf3 {[%clk 0:02:59.6]}
2... e6 {[%clk 0:02:45.5]} 3. d4 {[%clk 0:02:52.1]} 3... cxd4 {[%clk 0:02:46.4]}
4. Nxd4 {[%clk 0:02:50.9]} 4... Nc6 {[%clk 0:02:39.8]} 5. Nc3 {[%clk 0:02:45]}
5... Qc7 {[%clk 0:02:39.1]} 6. g3 {[%clk 0:02:37.5]} 6... a6 {[%clk 0:02:32.9]}
7. Bg2 {[%clk 0:02:37.6]} 7... Nf6 {[%clk 0:02:32.9]} 8. O-O {[%clk 0:02:37.4]}
8... Be7 {[%clk 0:02:33.2]} 9. Bf4 {[%clk 0:02:26.9]} 9... e5 {[%clk 0:02:25.2]}
10. Nxc6 {[%clk 0:02:26.2]} 10... bxc6 {[%clk 0:02:22.1]} 11. Be3 {[%clk
0:02:23.1]} 11... O-O {[%clk 0:02:20.8]} 12. Na4 {[%clk 0:02:13.9]} 12... d6
{[%clk 0:02:18.6]} 13. c4 {[%clk 0:01:52.7]} 13... Be6 {[%clk 0:02:16.2]} 14. b3
{[%clk 0:01:48.1]} 14... Rab8 {[%clk 0:02:15.3]} 15. h3 {[%clk 0:01:47.5]} 15...
Rfd8 {[%clk 0:02:14.8]} 16. Rc1 {[%clk 0:01:43.8]} 16... h6 {[%clk 0:02:13.6]}
17. Qd2 {[%clk 0:01:43.1]} 17... Nd7 {[%clk 0:02:07.8]} 18. Rfd1 {[%clk
0:01:42.6]} 18... Nc5 {[%clk 0:02:05.7]} 19. Nxc5 {[%clk 0:01:40.1]} 19... dxc5
{[%clk 0:02:06.6]} 20. Qb2 {[%clk 0:01:30.7]} 20... Rd4 {[%clk 0:02:03.6]} 21.
Bxd4 {[%clk 0:01:29.8]} 21... cxd4 {[%clk 0:02:04.5]} 22. c5 {[%clk 0:01:22.9]}
22... Qa5 {[%clk 0:01:58.1]} 23. Qd2 {[%clk 0:01:19.5]} 23... Rb4 {[%clk
0:01:50]} 24. Bf1 {[%clk 0:01:12]} 24... Bxc5 {[%clk 0:01:40.3]} 25. a3 {[%clk
0:01:10.4]} 25... Qxa3 {[%clk 0:01:28.5]} 26. Rxc5 {[%clk 0:01:08.5]} 26... Rxb3
{[%clk 0:01:28.3]} 27. Rxc6 {[%clk 0:01:00.1]} 27... a5 {[%clk 0:01:28.1]} 28.
Rxe6 {[%clk 0:00:56]} 28... fxe6 {[%clk 0:01:27.8]} 29. Bc4 {[%clk 0:00:54.8]}
29... Rb6 {[%clk 0:01:25.1]} 30. Qa2 {[%clk 0:00:51.4]} 30... Qf3 {[%clk
0:01:22.6]} 31. Qe2 {[%clk 0:00:47]} 31... Qc3 {[%clk 0:01:17.7]} 32. Rd2 {[%clk
0:00:41.2]} 32... a4 {[%clk 0:01:08.7]} 33. Rc2 {[%clk 0:00:35.7]} 33... Qa1+
{[%clk 0:01:08.6]} 34. Kg2 {[%clk 0:00:35.9]} 34... a3 {[%clk 0:01:08.6]} 35.
Qg4 {[%clk 0:00:35.1]} 35... Qb1 {[%clk 0:00:54.5]} 36. Bxe6+ {[%clk 0:00:34.8]}
36... Kh8 {[%clk 0:00:54.7]} 37. Rc8+ {[%clk 0:00:33.7]} 37... Kh7 {[%clk
0:00:52.4]} 38. Qf5+ {[%clk 0:00:34.2]} 1-0

[Event "Early-Titled-Tuesday-Blitz-March-19-2024"]
[Site "Chess.com"]
[Date "2024.03.19"]
[Round "5"]
[White "Felix-Rose"]
[Black "Cheer_Down"]
[Result "0-1"]
[WhiteElo "2257"]
[BlackElo "2452"]
[TimeControl "180+1"]
[EndTime "8:56:16 PDT"]
[Termination "Cheer_Down won by resignation"]

1. e4 {[%clk 0:02:58.6]} 1... e5 {[%clk 0:02:59.6]} 2. Nf3 {[%clk 0:02:58.8]}
2... Nc6 {[%clk 0:02:59.6]} 3. Nc3 {[%clk 0:02:59.1]} 3... Nf6 {[%clk
0:02:59.2]} 4. Bb5 {[%clk 0:02:59.2]} 4... Bc5 {[%clk 0:02:57.5]} 5. Bxc6 {[%clk
0:02:58.8]} 5... dxc6 {[%clk 0:02:54.5]} 6. d3 {[%clk 0:02:57.4]} 6... Be6
{[%clk 0:02:47]} 7. O-O {[%clk 0:02:54.9]} 7... Nd7 {[%clk 0:02:46.9]} 8. a3
{[%clk 0:02:47.8]} 8... a5 {[%clk 0:02:30.2]} 9. Bd2 {[%clk 0:02:40.6]} 9... O-O
{[%clk 0:02:22.3]} 10. Ng5 {[%clk 0:02:39]} 10... Qe7 {[%clk 0:02:20.6]} 11. Qh5
{[%clk 0:02:20.6]} 11... h6 {[%clk 0:02:19.4]} 12. Nxe6 {[%clk 0:02:15.8]} 12...
Qxe6 {[%clk 0:02:19.5]} 13. Kh1 {[%clk 0:02:15.8]} 13... f5 {[%clk 0:01:53.8]}
14. f4 {[%clk 0:02:11.4]} 14... Bd4 {[%clk 0:01:23.3]} 15. fxe5 {[%clk
0:02:02.9]} 15... fxe4 {[%clk 0:01:21.1]} 16. Nxe4 {[%clk 0:01:52]} 16... Bxb2
{[%clk 0:01:18.1]} 17. Rab1 {[%clk 0:01:27.7]} 17... Qxe5 {[%clk 0:01:16.3]} 18.
Qg4 {[%clk 0:01:19.7]} 18... Nf6 {[%clk 0:01:11]} 19. Nxf6+ {[%clk 0:01:14.2]}
19... Rxf6 {[%clk 0:01:11.3]} 20. Rfe1 {[%clk 0:00:56.2]} 20... Qd4 {[%clk
0:01:07.6]} 21. Qxd4 {[%clk 0:00:52.9]} 21... Bxd4 {[%clk 0:01:06.9]} 22. Rxb7
{[%clk 0:00:52.8]} 22... Rf2 {[%clk 0:01:02.7]} 23. c3 {[%clk 0:00:38.6]} 23...
Bb6 {[%clk 0:00:59.3]} 24. Bc1 {[%clk 0:00:17.4]} 24... Raf8 {[%clk 0:00:58.7]}
25. g3 {[%clk 0:00:07.8]} 25... Rf1+ {[%clk 0:00:58.2]} 26. Rxf1 {[%clk
0:00:08.4]} 26... Rxf1+ {[%clk 0:00:58.3]} 27. Kg2 {[%clk 0:00:09.3]} 27... Rxc1
{[%clk 0:00:59]} 0-1

[Event "Early-Titled-Tuesday-Blitz-March-19-2024"]
[Site "Chess.com"]
[Date "2024.03.19"]
[Round "5"]
[White "Pumpkin_in_moonlight"]
[Black "IsaqueGoncalvesSanto"]
[Result "0-1"]
[WhiteElo "2225"]
[BlackElo "1877"]
[TimeControl "180+1"]
[EndTime "8:56:16 PDT"]
[Termination "IsaqueGoncalvesSanto won by resignation"]

1. e4 {[%clk 0:03:00.9]} 1... e6 {[%clk 0:03:00.2]} 2. d4 {[%clk 0:02:52.4]}
2... d5 {[%clk 0:02:59.5]} 3. e5 {[%clk 0:02:50.8]} 3... c5 {[%clk 0:02:59]} 4.
f4 {[%clk 0:02:44.3]} 4... Nc6 {[%clk 0:02:59]} 5. Nf3 {[%clk 0:02:44.1]} 5...
f6 {[%clk 0:02:58.4]} 6. Be3 {[%clk 0:02:39.7]} 6... Qb6 {[%clk 0:02:57.1]} 7.
b3 {[%clk 0:02:13.7]} 7... fxe5 {[%clk 0:02:53.3]} 8. dxe5 {[%clk 0:02:02.1]}
8... d4 {[%clk 0:02:45]} 9. Bf2 {[%clk 0:01:59.9]} 9... Nge7 {[%clk 0:02:41.1]}
10. Nbd2 {[%clk 0:01:54.4]} 10... Nd5 {[%clk 0:02:40]} 11. g3 {[%clk 0:01:50]}
11... Nc3 {[%clk 0:02:38.9]} 12. Qc1 {[%clk 0:01:38]} 12... Be7 {[%clk
0:02:15.1]} 13. Bd3 {[%clk 0:01:25]} 13... Nb4 {[%clk 0:02:11.9]} 14. Bc4 {[%clk
0:00:45.1]} 14... Qc6 {[%clk 0:01:55.7]} 15. a4 {[%clk 0:00:40.2]} 15... a6
{[%clk 0:01:49.5]} 16. a5 {[%clk 0:00:39.6]} 16... g5 {[%clk 0:01:35]} 17. Nb1
{[%clk 0:00:23.3]} 17... Nxb1 {[%clk 0:01:23.7]} 18. Rxb1 {[%clk 0:00:21]} 18...
g4 {[%clk 0:01:23.5]} 19. O-O {[%clk 0:00:16.5]} 19... gxf3 {[%clk 0:01:17.8]}
20. c3 {[%clk 0:00:13.2]} 20... Na2 {[%clk 0:01:04.5]} 21. Qc2 {[%clk
0:00:12.3]} 21... Nxc3 {[%clk 0:01:03.3]} 22. Rbe1 {[%clk 0:00:10.4]} 22... Bd7
{[%clk 0:01:00.8]} 23. Qd3 {[%clk 0:00:08.2]} 23... O-O-O {[%clk 0:00:56.8]} 24.
Ra1 {[%clk 0:00:06.2]} 24... Ne2+ {[%clk 0:00:54.7]} 25. Kh1 {[%clk 0:00:05.9]}
25... Be8 {[%clk 0:00:51.9]} 26. Rfb1 {[%clk 0:00:04.8]} 26... Bg6 {[%clk
0:00:51]} 0-1